bitfinex-derivatives/quotes_SOLF0:USTF0_20250820
["timestamp","ask_amount","ask_price","bid_price","bid_amount"]
[1755677611129,2.94,180.84,180.81,3.04]
[1755677611932,2.94,180.83,180.8,3.04]
[1755677612129,8.4704,180.83,180.8,3.04]
[1755677613333,5.5305,180.82,180.8,3.04]
[1755677615136,8.4705,180.82,180.8,3.04]
[1755677616032,5.5302,180.83,180.8,3.04]
[1755677616739,5.5302,180.83,180.81,3.04]
[1755677617438,5.5304,180.82,180.81,3.04]
[1755677617939,5.5302,180.83,180.81,3.04]
[1755677618336,2.94,180.85,180.81,3.04]
[1755677618539,2.94,180.9,180.82,5.49428552]
[1755677619041,5.5289,180.88,180.85,5.5295]
[1755677619237,5.5289,180.88,180.85,8.5695]
[1755677619437,5.5289,180.88,180.85,3.04]
[1755677619634,5.5285,180.89,180.86,3.04]
[1755677619837,2.94,180.89,180.86,3.04]
[1755677620340,8.4684,180.89,180.86,8.5692]
[1755677620545,136.06,180.92,180.88,3.04]
[1755677620736,2.94,180.91,180.88,3.04]
[1755677620931,2.94,180.91,180.87,5.5289]
[1755677621236,2.94,180.9,180.86,3.04]
[1755677621436,2.94,180.9,180.85,2.45428552]
[1755677621642,2.94,180.9,180.87,3.04]
[1755677622042,8.4682,180.9,180.87,3.04]
[1755677622542,144.5275,180.92,180.88,8.5685]
[1755677623245,5.5277,180.91,180.89,3.04]
[1755677623947,8.4677,180.91,180.87,3.04]
[1755677624140,5.5277,180.91,180.87,3.04]
[1755677624447,2.94,180.9,180.83,5.49428552]
[1755677624847,5.5285,180.89,180.85,3.04]
[1755677625042,2.94,180.91,180.85,3.04]
[1755677625847,5.5286,180.89,180.84,3.04]
[1755677626047,2.94,180.91,180.86,3.04]
[1755677626244,8.4679,180.91,180.85,5.5293]
[1755677626448,8.4679,180.91,180.86,3.04]
[1755677626746,8.4679,180.91,180.85,5.5293]
[1755677626950,8.4679,180.91,180.87,3.04]
[1755677627250,5.5281,180.9,180.88,3.04]
[1755677628551,2.94,180.94,180.88,3.04]
[1755677629255,2.94,180.94,180.88,8.5685]
[1755677630146,5.5273,180.93,180.88,5.5285]
[1755677630350,5.5273,180.93,180.9,3.04]
[1755677631250,8.4674,180.92,180.88,3.04]
[1755677632153,5.5277,180.91,180.88,3.04]
[1755677632353,8.4677,180.91,180.88,3.04]
[1755677632553,5.5277,180.91,180.86,7.98338552]
[1755677632757,2.94,180.9,180.86,11.02338552]
[1755677632957,8.468,180.9,180.86,11.02338552]
[1755677633553,2.94,180.9,180.86,7.98338552]
[1755677633763,5.5278,180.91,180.87,8.5689]
[1755677634255,5.5274,180.92,180.87,5.5288]
[1755677634454,2.94,180.92,180.88,3.04]
[1755677634851,2.94,180.95,180.88,3.04]
[1755677635454,5.5276,180.92,180.88,3.04]
[1755677635662,2.94,180.91,180.85,3.04]
[1755677635962,8.4679,180.91,180.85,3.04]
[1755677636157,8.4679,180.91,180.86,5.529]
[1755677636361,8.4679,180.91,180.87,3.04]
[1755677636765,5.5281,180.9,180.87,3.04]
[1755677637458,5.5283,180.89,180.87,3.04]
[1755677638261,5.5278,180.91,180.85,3.04]
[1755677638962,5.5278,180.91,180.87,8.5587]
[1755677639161,5.5278,180.91,180.87,5.5287]
[1755677639467,5.5278,180.91,180.87,8.5587]
[1755677639865,5.5278,180.91,180.89,3.03]
[1755677640062,371.5,180.96,180.84,2.45428552]
[1755677640365,371.5,180.96,180.88,3.03]
[1755677640570,5.5266,180.95,180.91,5.5275]
[1755677640865,3.12,180.97,180.91,3.03]
[1755677641466,5.5269,180.94,180.91,3.03]
[1755677642068,3.12,181.0,180.93,3.03]
[1755677642662,5.5264,180.96,180.93,3.03]
[1755677643474,3.12,181.0,180.93,5.5271]
[1755677643662,3.12,181.0,180.93,8.5571]
[1755677644270,5.5261,180.97,180.93,8.5571]
[1755677644470,5.5261,180.97,180.94,3.03]
[1755677645873,8.6461,180.97,180.94,3.03]
[1755677646572,8.6461,180.97,180.94,8.5568]
[1755677648675,8.6461,180.97,180.94,3.03]
[1755677650376,5.5261,180.97,180.93,5.527]
[1755677650578,5.5261,180.97,180.95,3.03]
[1755677651077,8.6461,180.97,180.94,3.03]
[1755677652278,5.5262,180.96,180.92,5.5273]
[1755677652475,8.6462,180.96,180.92,5.5273]
[1755677652676,8.6462,180.96,180.93,3.03]
[1755677653778,3.12,180.96,180.93,3.03]
[1755677655080,8.6462,180.96,180.93,3.03]
[1755677655374,3.12,180.96,180.9,2.45428552]
[1755677655578,135.98,181.02,180.94,3.03]
[1755677655779,3.12,180.99,180.94,3.03]
[1755677655973,135.98,181.02,180.94,3.03]
[1755677655974,3.12,180.98,180.94,3.03]
[1755677656272,3.12,180.97,180.94,3.03]
[1755677656472,8.646,180.97,180.94,3.03]
[1755677656679,5.526,180.97,180.91,3.03]
[1755677656880,3.12,181.0,180.91,3.03]
[1755677657181,8.6455,180.99,180.96,3.03]
[1755677657378,3.12,180.98,180.96,3.03]
[1755677657582,3.12,180.98,180.95,5.5265]
[1755677657778,3.12,180.98,180.95,8.5565]
[1755677658081,3.12,180.98,180.95,3.03]
[1755677658877,3.12,180.97,180.95,3.03]
[1755677659284,8.6459,180.97,180.95,3.03]
[1755677659879,8.6459,180.97,180.94,5.5267]
[1755677660085,8.6459,180.97,180.94,8.5567]
[1755677661986,8.6459,180.97,180.95,3.03]
[1755677664682,0.0354546,180.98,180.93,2.45428552]
[1755677664882,0.0354546,180.98,180.94,3.03]
[1755677665087,5.5255,180.99,180.95,5.5264]
[1755677665284,8.6455,180.99,180.96,3.03]
[1755677665487,3.12,180.99,180.96,3.03]
[1755677666190,5.5256,180.98,180.96,3.03]
[1755677666894,3.12,181.01,180.9,2.45428552]
[1755677667189,3.12,181.01,180.91,3.03]
[1755677668188,5.5262,180.96,180.93,5.5271]
[1755677668489,5.5262,180.96,180.94,3.03]
[1755677668886,5.5259,180.97,180.94,5.5267]
[1755677669092,3.12,180.99,180.96,3.01]
[1755677669594,5.5256,180.98,180.96,3.01]
[1755677669783,3.12,180.99,180.96,3.01]
[1755677669983,135.88,181.05,180.97,3.01]
[1755677670188,138.85,181.05,180.97,3.01]
[1755677670586,138.85,181.05,180.98,5.5255]
[1755677670886,5.5246,181.02,180.98,5.5255]
[1755677671092,8.4946,181.02,180.98,8.5355]
[1755677671590,8.4946,181.02,180.99,3.01]
[1755677672191,8.4946,181.02,180.99,8.5352]
[1755677672691,5.5246,181.02,180.99,8.5352]
[1755677672890,8.4946,181.02,180.99,8.5352]
[1755677673088,5.5247,181.01,180.98,5.5255]
[1755677673293,2.97,181.0,180.96,3.01]
[1755677673590,2.97,181.0,180.97,3.01]
[1755677673787,8.495,181.0,180.97,3.01]
[1755677675194,8.495,181.0,180.97,8.5356]
[1755677676695,2.97,181.05,180.97,8.5356]
[1755677677190,2.97,181.05,180.98,5.5255]
[1755677677396,2.97,181.03,180.99,3.01]
[1755677677697,2.97,181.03,181.0,3.01]
[1755677677898,5.5246,181.02,181.0,3.01]
[1755677678397,8.4946,181.02,180.99,3.01]
[1755677678997,5.5246,181.01,180.99,3.01]
[1755677684502,5.5246,181.01,180.99,4.57252778]
[1755677685799,5.5249,181.0,180.99,4.57252778]
[1755677686899,5.5249,181.0,180.96,8.5361]
[1755677687104,5.5249,181.0,180.98,4.57252778]
[1755677690306,5.5247,181.01,180.99,3.01]
[1755677690507,5.5247,181.01,181.0,3.01]
[1755677691705,5.5251,181.0,180.98,4.57252778]
[1755677692007,5.5251,181.0,180.99,1.56252778]
[1755677693510,5.5253,180.99,180.97,1.56252778]
[1755677693711,2.97,181.01,180.95,4.57252778]
[1755677693911,1.56252778,181.0,180.93,1.56252778]
[1755677694114,2.97,180.99,180.93,1.56252778]
[1755677694410,5.5266,180.95,180.93,1.56252778]
[1755677695011,8.4966,180.95,180.92,3.01]
[1755677695206,8.4966,180.95,180.92,4.57252778]
[1755677696308,1.56252778,180.98,180.9,1.56252778]
[1755677696508,2.97,180.97,180.9,1.56252778]
[1755677696810,5.5272,180.93,180.9,1.56252778]
[1755677697108,2.97,180.95,180.9,1.56252778]
[1755677697309,5.5277,180.91,180.87,8.5389]
[1755677697511,5.5277,180.91,180.88,4.57252778]
[1755677697512,8.4977,180.91,180.88,4.57252778]
[1755677698413,5.5275,180.92,180.89,2.86]
[1755677698613,3.01,180.95,180.89,5.30416868]
[1755677698809,3.01,180.95,180.89,2.44416868]
[1755677699006,3.01,180.95,180.91,2.86]
[1755677699207,3.01,180.95,180.92,2.86]
[1755677699503,8.5367,180.95,180.92,2.86]
[1755677699802,3.01,180.95,180.92,2.86]
[1755677700508,8.5371,180.93,180.89,2.86]
[1755677700909,8.5371,180.93,180.9,2.86]
[1755677701110,5.5271,180.93,180.91,2.86]
[1755677702818,5.5269,180.94,180.89,5.5281]
[1755677703019,5.5269,180.94,180.93,2.86]
[1755677703416,8.5369,180.94,180.9,2.86]
[1755677703713,8.5369,180.94,180.91,2.86]
[1755677704208,5.5266,180.95,180.9,5.5279]
[1755677704408,3.01,180.99,180.91,5.30416868]
[1755677705316,3.01,181.0,180.92,2.86]
[1755677705517,3.01,181.0,180.91,2.44416868]
[1755677706019,3.01,181.0,180.92,2.86]
[1755677707216,5.526,180.97,180.92,8.3871]
[1755677707419,5.526,180.97,180.94,2.86]
[1755677707621,5.526,180.97,180.95,2.86]
[1755677708823,5.5262,180.96,180.92,5.5271]
[1755677709024,523.66,181.04,180.93,2.86]
[1755677709225,3.01,180.96,180.93,2.86]
[1755677709425,523.66,181.04,180.91,7.97176868]
[1755677709426,8.5365,180.95,180.91,2.44416868]
[1755677709723,3.01,180.95,180.92,2.86]
[1755677709924,5.526,180.97,180.93,2.86]
[1755677710130,8.536,180.97,180.93,2.86]
[1755677710332,8.536,180.97,180.94,2.86]
[1755677711231,5.5262,180.96,180.94,2.86]
[1755677711435,8.5362,180.96,180.91,7.97176868]
[1755677711632,8.5362,180.96,180.93,2.86]
[1755677712128,5.5262,180.96,180.92,2.86]
[1755677712328,5.5262,180.96,180.93,2.86]
[1755677714531,5.5262,180.96,180.94,2.86]
[1755677715530,3.01,181.03,180.95,2.86]
[1755677715930,8.5352,181.0,180.96,2.86]
[1755677716130,8.5352,181.0,180.97,2.86]
[1755677716833,5.5253,180.99,180.97,2.86]
[1755677718628,8.5353,180.99,180.95,5.5262]
[1755677718932,135.76,181.07,180.97,5.30416868]
[1755677719130,3.01,181.06,180.97,5.30416868]
[1755677719522,8.5351,181.0,180.97,5.30416868]
[1755677719724,138.20416868,181.07,180.95,5.5263]
[1755677719924,3.01,181.06,180.95,5.5263]
[1755677720325,5.5255,180.99,180.94,10.83086868]
[1755677720526,8.5355,180.99,180.95,2.86]
[1755677720724,8.5355,180.99,180.96,2.86]
[1755677722330,3.01,180.99,180.95,2.86]
[1755677722535,3.01,181.06,180.95,2.86]
[1755677723132,5.5251,181.0,180.96,5.5261]
[1755677723339,8.5351,181.0,180.96,8.3861]
[1755677723841,8.5354,180.99,180.96,2.86]
[1755677724342,3.01,180.99,180.96,2.86]
[1755677724543,5.525,181.0,180.97,2.86]
[1755677724739,8.535,181.0,180.97,2.86]
[1755677725239,3.01,180.99,180.97,2.86]
[1755677726343,8.5353,180.99,180.97,4.42286692]
[1755677726539,3.01,180.99,180.97,4.42286692]
[1755677726842,3.01,180.99,180.97,1.56286692]
[1755677728150,3.01,180.99,180.97,4.42286692]
[1755677728341,5.5252,181.0,180.97,4.42286692]
[1755677728538,3.09,181.0,180.97,4.42286692]
[1755677728836,3.09,181.0,180.98,2.99]
[1755677731347,5.5248,181.01,180.98,2.99]
[1755677731846,8.6148,181.01,180.98,2.99]
[1755677732142,5.5241,181.03,180.98,2.99]
[1755677732348,3.09,181.02,180.99,2.99]
[1755677732949,8.6141,181.03,181.0,2.99]
[1755677733248,3.09,181.02,180.99,2.99]
[1755677733546,8.6144,181.02,180.99,2.99]
[1755677734348,8.6146,181.01,180.98,4.55286692]
[1755677734740,3.09,181.0,180.98,4.55286692]
[1755677735254,5.5246,181.01,180.98,4.55286692]
[1755677735442,8.6146,181.01,180.98,4.55286692]
[1755677735643,3.09,181.04,180.92,123.53665207]
[1755677735950,3.09,181.0,180.94,1.56286692]
[1755677736451,3.09,181.0,180.93,2.99]
[1755677736452,3.09,180.98,180.92,123.53665207]
[1755677736847,3.09,180.98,180.92,126.52665207]
[1755677737048,3.09,180.98,180.93,1.56286692]
[1755677737247,1.56286692,180.99,180.94,2.99]
[1755677737446,3.09,180.97,180.93,1.56286692]
[1755677737750,3.09,180.98,180.93,1.56286692]
[1755677737949,1.56286692,180.99,180.93,1.56286692]
[1755677738151,8.6167,180.95,180.93,1.56286692]
[1755677738352,8.6167,180.95,180.92,2.99]
[1755677738943,5.5267,180.95,180.92,2.99]
[1755677739147,8.6167,180.95,180.92,2.99]
[1755677739349,3.09,180.93,180.9,2.99]
[1755677739545,3.09,181.01,180.9,2.99]
[1755677739952,3.09,181.01,180.87,6.1664553]
[1755677739953,3.09,181.01,180.93,5.5269]
[1755677740151,3.09,181.01,180.94,2.99]
[1755677740557,8.6155,180.99,180.92,2.44319963]
[1755677740753,8.6155,180.99,180.93,2.99]
[1755677741158,5.5255,180.99,180.97,2.99]
[1755677742052,8.6155,180.99,180.97,2.99]
[1755677742244,8.6155,180.99,180.96,2.99]
[1755677742447,5.5256,180.98,180.9,2.99]
[1755677742654,8.6156,180.98,180.95,2.99]
[1755677742851,8.6159,180.97,180.95,2.99]
[1755677743456,5.5257,180.98,180.95,2.99]
[1755677743655,8.6157,180.98,180.95,2.99]
[1755677744455,3.09,181.05,180.93,2.44319963]
[1755677744656,3.09,181.03,180.91,2.99]
[1755677744858,5.5268,180.94,180.91,2.99]
[1755677745059,8.6168,180.94,180.91,2.99]
[1755677745254,2.44319963,181.01,180.91,2.99]
[1755677745455,5.5273,180.93,180.88,2.99]
[1755677745861,3.09,180.95,180.87,2.44319963]
[1755677746058,8.6165,180.95,180.87,2.44319963]
[1755677746263,3.09,180.98,180.88,2.99]
[1755677746765,5.5262,180.96,180.92,2.99]
[1755677746966,5.5262,180.96,180.9,2.44319963]
[1755677747157,5.5262,180.96,180.94,2.99]
[1755677747662,5.5264,180.95,180.94,2.99]
[1755677747962,5.5264,180.95,180.93,2.99]
[1755677749659,8.6164,180.95,180.92,2.99]
[1755677749852,3.09,180.95,180.9,2.44319963]
[1755677750053,5.5262,180.96,180.94,2.99]
[1755677750564,3.09,180.99,180.95,2.99]
[1755677750765,3.09,180.99,180.93,2.44319963]
[1755677750966,3.09,180.99,180.96,2.99]
[1755677751466,5.5256,180.98,180.96,2.99]
[1755677751967,8.6156,180.98,180.94,5.5266]
[1755677752164,8.6156,180.98,180.95,2.99]
[1755677753963,5.5256,180.98,180.96,2.99]
[1755677754262,5.5256,180.98,180.97,2.99]
[1755677754463,5.5252,180.99,180.97,2.99]
[1755677755565,5.5252,180.99,180.95,5.5264]
[1755677755768,5.5256,180.98,180.96,2.99]
[1755677757266,8.6153,180.99,180.96,2.99]
[1755677757569,3.09,181.02,180.94,2.99]
[1755677758072,135.68,181.06,180.94,2.99]
[1755677758272,3.09,181.05,180.94,2.99]
[1755677758886,2.97,181.02,180.97,5.5257]
[1755677759083,2.97,181.01,180.98,2.86]
[1755677759977,135.68,181.06,180.98,2.86]
[1755677760184,2.97,181.0,180.96,5.526]
[1755677760484,2.97,181.05,180.97,2.86]
[1755677761070,2.97,181.05,180.93,2.44319963]
[1755677761272,2.97,181.04,180.9,11.46965493]
[1755677761472,2.97,181.04,180.9,5.30319963]
[1755677761673,2.97,181.04,180.91,2.86]
[1755677761979,2.97,180.99,180.91,2.86]
[1755677762378,5.5259,180.97,180.94,8.3867]
[1755677762976,8.4962,180.96,180.93,2.86]
[1755677763174,5.5262,180.96,180.91,2.86]
[1755677763479,5.5265,180.95,180.92,5.5273]
[1755677763779,2.97,181.01,180.9,2.44319963]
[1755677764183,5.5263,180.96,180.92,2.86]
[1755677764384,5.5263,180.96,180.91,2.86]
[1755677764580,2.97,181.01,180.92,2.86]
[1755677764788,2.97,181.04,180.91,2.86]
[1755677765384,5.5261,180.97,180.93,5.5269]
[1755677765680,5.5261,180.97,180.94,2.86]
[1755677765886,5.5262,180.96,180.94,2.86]
[1755677766182,2.97,180.97,180.94,2.86]
[1755677766388,2.97,180.96,180.9,2.44319963]
[1755677766686,5.5267,180.95,180.92,2.86]
[1755677766982,5.5267,180.95,180.91,5.5276]
[1755677767188,8.4962,180.96,180.93,2.86]
[1755677768383,8.4965,180.95,180.91,8.3876]
[1755677768687,5.5265,180.95,180.92,2.86]
[1755677768889,5.5265,180.95,180.93,2.86]
[1755677769186,2.97,180.94,180.9,2.86]
[1755677769382,2.97,180.92,180.88,6.1664553]
[1755677769687,2.97,180.93,180.88,2.86]
[1755677769882,2.97,180.93,180.9,2.86]
[1755677770290,16.59,181.05,180.86,144.24965493]
[1755677770486,2.97,181.04,180.94,5.30319963]
[1755677770788,2.97,181.04,180.95,2.86]
[1755677771087,2.97,181.0,180.95,2.86]
[1755677771388,2.97,181.0,180.94,2.44319963]
[1755677771389,5.5246,181.01,180.96,2.44319963]
[1755677771590,2.97,181.08,180.96,2.44319963]
[1755677772289,2.97,181.08,180.95,5.30319963]
[1755677772688,2.97,181.08,180.96,2.86]
[1755677772890,2.97,181.08,180.98,2.44319963]
[1755677774191,2.97,181.08,180.96,2.86]
[1755677774991,2.97,181.08,180.96,8.3861]
[1755677776285,2.97,181.08,180.96,2.86]
[1755677776590,2.97,181.06,180.95,2.44319963]
[1755677776992,2.97,181.06,180.98,4.64465416]
[1755677777191,2.44319963,181.04,180.96,4.64465416]
[1755677777388,2.97,181.03,180.96,4.64465416]
[1755677778193,5.5256,180.98,180.97,4.64465416]
[1755677779888,8.4958,180.97,180.96,4.64465416]
[1755677780192,2.97,181.08,180.96,7.50465416]
[1755677780393,2.97,181.08,180.97,7.50465416]
[1755677780589,2.97,181.07,181.01,4.64465416]
[1755677780987,148.16,181.09,181.02,4.64465416]
[1755677781186,2.97,181.06,181.03,4.64465416]
[1755677782293,2.97,181.11,181.04,7.50465416]
[1755677782484,2.97,181.11,181.04,4.64465416]
[1755677782686,2.97,181.11,181.02,4.64465416]
[1755677782884,2.97,181.11,181.06,0.04218439]
[1755677783088,2.97,181.08,181.06,0.04218439]
[1755677783986,0.04108821,181.09,181.03,4.64465416]
[1755677784189,2.97,181.04,180.85,2.86]
[1755677784389,2.44319963,181.08,180.85,2.86]
[1755677784390,2.44319963,180.95,180.85,2.86]
[1755677785095,2.44319963,180.97,180.85,2.86]
[1755677785396,0.03834638,180.92,180.79,2.44319963]
[1755677785593,0.03834638,180.92,180.82,5.30319963]
[1755677785801,2.44319963,180.96,180.83,2.86]
[1755677786294,0.04038644,180.89,180.83,2.86]
[1755677787296,0.04038644,180.89,180.8,2.86]
[1755677787690,3.80414047,180.96,180.8,2.86]
[1755677788187,0.03717543,180.86,180.8,2.86]
[1755677788392,3.80414047,180.96,180.8,2.86]
[1755677788689,5.56892017,180.85,180.8,5.531]
[1755677788895,0.03922017,180.85,180.76,2.94]
[1755677789099,3.80414047,180.96,180.76,2.94]
[1755677789297,0.03667738,180.82,180.76,2.94]
[1755677789696,5.5304,180.83,180.78,5.5316]
[1755677789898,3.80414047,180.92,180.79,2.94]
[1755677790198,0.03643065,180.81,180.79,2.94]
[1755677790399,3.80414047,180.92,180.79,2.94]
[1755677790795,0.03756541,180.82,180.75,117.841186]
[1755677790999,5.5307,180.82,180.8,2.94]
[1755677791498,5.5313,180.8,180.76,2.94]
[1755677791690,5.5313,180.8,180.75,123.373686]
[1755677791892,5.5313,180.8,180.78,2.94]
[1755677793398,0.04150974,180.81,180.75,117.841186]
[1755677793596,0.05,180.94,180.76,2.94]
[1755677793995,0.05,180.94,180.82,8.4703]
[1755677796896,0.05,180.94,180.82,2.94]
[1755677797601,0.05,180.94,180.87,8.4689]
[1755677798704,0.05,180.94,180.87,2.94]
[1755677799898,5.5279,180.91,180.88,2.94]
[1755677800096,0.05,180.94,180.88,2.94]
[1755677801103,5.5279,180.91,180.89,2.94]
[1755677801799,5.5274,180.92,180.79,3.80414047]
[1755677802003,5.5274,180.92,180.9,2.94]
[1755677802405,521.03,180.99,180.87,2.94]
[1755677802705,521.03,180.99,180.88,2.94]
[1755677803300,5.5269,180.94,180.91,2.94]
[1755677803605,5.5269,180.94,180.92,2.94]
[1755677804102,5.5264,180.96,180.92,2.94]
[1755677804307,149.71,180.99,180.93,2.94]
[1755677804700,149.71,180.99,180.89,2.94]
[1755677805204,5.5267,180.95,180.89,8.4683]
[1755677805698,0.05,181.04,180.9,2.94]
[1755677805896,0.05,181.04,180.93,2.94]
[1755677806706,5.5258,180.98,180.93,8.467]
[1755677806999,0.05,181.02,180.94,2.94]
[1755677807394,5.526,180.97,180.94,2.94]
[1755677807602,5.526,180.97,180.95,2.94]
[1755677807905,5.5256,180.98,180.96,2.94]
[1755677808307,0.05,181.02,180.96,2.94]
[1755677808707,5.5255,180.99,180.96,2.94]
[1755677809305,5.525,181.0,180.96,2.94]
[1755677809505,5.525,181.0,180.97,2.94]
[1755677810411,5.5246,181.01,180.97,2.94]
[1755677810604,0.05,181.06,180.96,2.94]
[1755677810803,0.05,181.05,180.96,2.94]
[1755677811205,5.5242,181.03,180.98,5.5255]
[1755677811407,0.05,181.05,180.99,2.94]
[1755677811607,5.5243,181.02,180.99,2.94]
[1755677812516,5.524,181.03,180.99,2.94]
[1755677812709,0.05,181.05,180.94,2.44245846]
[1755677812903,149.34,181.07,181.02,2.94]
[1755677813110,5.5236,181.05,181.02,2.94]
[1755677814204,5.5232,181.06,181.02,2.94]
[1755677815014,0.05,181.06,181.02,2.94]
[1755677815819,0.05,181.06,180.98,8.4654]
[1755677816119,0.05,181.06,180.98,2.94]
[1755677817218,5.5242,181.03,180.99,5.5252]
[1755677817611,5.5242,181.03,181.01,2.94]
[1755677817917,5.5242,181.03,180.92,6.14007674]
[1755677817918,5.5249,181.01,180.98,2.94]
[1755677818421,5.5251,181.0,180.96,5.5261]
[1755677818622,0.05,181.04,180.93,2.44245846]
[1755677818917,5.525,181.0,180.97,3.13]
[1755677819105,0.05,181.04,180.97,3.13]
[1755677819713,5.5246,181.01,180.98,3.13]
[1755677819913,2.44245846,181.06,180.94,3.13]
[1755677820213,2.44245846,181.06,180.95,3.13]
[1755677820416,0.05,181.02,180.9,3.13]
[1755677821121,5.5262,180.96,180.92,5.5273]
[1755677821821,5.5266,180.95,180.93,3.13]
[1755677822123,0.05,180.98,180.88,3.13]
[1755677822324,5.5273,180.93,180.88,8.6584]
[1755677822518,0.05,180.98,180.86,3.13]
[1755677823722,0.05,180.98,180.91,3.13]
[1755677824422,5.527,180.94,180.91,3.13]
[1755677824622,5.527,180.94,180.86,2.44245846]
[1755677825018,5.5264,180.96,180.91,5.5276]
[1755677825221,5.5264,180.96,180.87,3.13]
[1755677825622,5.5264,180.96,180.91,5.5274]
[1755677825823,5.5264,180.96,180.93,3.13]
[1755677826424,0.05,181.05,180.94,3.13]
[1755677826724,0.05,181.05,180.95,3.13]
[1755677827419,0.05,181.05,180.95,5.57245846]
[1755677827924,0.05,181.05,180.96,3.13]
[1755677831930,0.05,181.05,180.96,8.6561]
[1755677832532,0.05,181.05,180.96,3.13]
[1755677833820,5.5253,180.99,180.96,3.13]
[1755677834526,5.5253,180.99,180.9,3.13]
[1755677834725,5.525,181.0,180.89,3.79788947]
[1755677834928,5.525,181.0,180.96,3.13]
[1755677835129,0.05,181.02,180.96,3.13]
[1755677835932,5.5253,180.99,180.96,3.13]
[1755677837433,5.5256,180.98,180.96,3.13]
[1755677838242,5.5253,180.99,180.96,3.13]
[1755677838640,5.5253,180.99,180.97,3.13]
[1755677841546,5.5255,180.98,180.97,3.13]
[1755677841842,0.05,181.02,180.91,3.13]
[1755677842146,5.5267,180.95,180.91,5.5276]
[1755677842348,31.43368947,181.07,180.88,3.13]
[1755677842349,0.05,180.98,180.88,3.13]
[1755677842738,0.05,180.98,180.89,5.5283]
[1755677842939,0.05,180.98,180.9,3.13]
[1755677844047,0.05,180.98,180.9,8.6579]
[1755677844342,0.05,180.98,180.9,13.29256752]
[1755677845041,0.05,180.98,180.9,7.76466752]
[1755677845242,0.05,180.98,180.9,3.13]
[1755677846343,0.05,180.98,180.9,7.76466752]
[1755677847537,0.05,180.98,180.9,3.13]
[1755677848846,0.05,180.98,180.9,8.658]
[1755677849944,5.5266,180.95,180.91,2.96]
[1755677850143,5.5266,180.95,180.9,5.528]
[1755677850345,5.5266,180.95,180.93,2.96]
[1755677851450,5.5268,180.94,180.93,2.96]
[1755677855554,5.5265,180.95,180.94,2.96]
[1755677855753,16.59,181.06,180.94,2.96]
[1755677855943,0.04,181.02,180.94,2.96]
[1755677856647,5.5261,180.97,180.95,2.96]
[1755677858858,5.5261,180.97,180.96,2.96]
[1755677860157,5.5261,180.97,180.92,5.5273]
[1755677860560,5.5261,180.97,180.95,2.96]
[1755677863560,5.5256,180.98,180.93,10.16384929]
[1755677863760,5.5256,180.98,180.97,2.96]